bitfinex/quotes_ETHUSD_20250411
["timestamp","ask_amount","ask_price","bid_price","bid_amount"]
[1744395722176,4.25131244,1567.5,1567.4,7.13839]
[1744395722483,4.25131244,1567.6,1567.4,7.13836]
[1744395722684,6.37958,1567.5,1567.4,0.7584]
[1744395723054,17.00987244,1567.6,1567.4,0.7584]
[1744395723268,6.37958,1567.5,1567.4,0.7584]
[1744395723488,6.38063,1567.3,1567.2,0.7828]
[1744395723703,12.76126,1567.3,1567.2,0.7828]
[1744395724372,6.38063,1567.3,1567.2,0.7828]
[1744395725501,6.38009,1567.4,1567.2,0.7828]
[1744395725673,10.63050244,1567.6,1567.2,6.44444144]
[1744395725880,17.00986244,1567.6,1567.3,7.17493]
[1744395726082,6.37981,1567.5,1567.3,0.7946]
[1744395726288,6.97973,1567.5,1567.3,0.7946]
[1744395726470,6.37999,1567.4,1567.3,0.7946]
[1744395726804,13.35953,1567.5,1567.3,0.7946]
[1744395727160,0.6,1567.5,1567.3,7.17496]
[1744395727487,0.6,1567.5,1567.4,7.14469]
[1744395727685,0.04424125,1567.7,1567.6,6.37917]
[1744395727989,0.04424125,1567.7,1567.6,0.7647]
[1744395728694,0.04424125,1567.7,1567.6,7.14387]
[1744395729049,0.04424125,1567.7,1567.6,0.7647]
[1744395729493,6.42301125,1567.7,1567.6,0.7647]
[1744395729846,0.04424125,1567.7,1567.6,0.7647]
[1744395730251,0.04424125,1567.7,1567.6,0.7127]
[1744395730882,0.04424125,1567.7,1567.6,7.09187]
[1744395731082,3.7632,1567.5,1566.1,0.15991321]
[1744395731376,6.38425,1566.4,1566.1,0.15991321]
[1744395731557,12.76674,1566.6,1566.1,0.15991321]
[1744395731752,6.38447,1566.4,1566.1,0.15991321]
[1744395732376,12.76877,1566.4,1566.1,0.15991321]
[1744395732546,6.38466,1566.3,1566.1,0.15991321]
[1744395733175,6.38325,1566.6,1566.1,6.54506321]
[1744395733176,6.38372,1566.5,1566.1,6.54506321]
[1744395733380,12.76762,1566.5,1566.2,0.7852]
[1744395733586,6.38447,1566.3,1566.2,0.7852]
[1744395733882,6.38409,1566.4,1566.2,0.7852]
[1744395734093,6.38409,1566.4,1566.1,0.15991321]
[1744395734094,6.38488,1566.2,1566.1,0.15991321]
[1744395734583,20.43011,1566.3,1566.1,0.15991321]
[1744395734787,14.04547,1566.3,1566.1,0.15991321]
[1744395734969,7.661,1566.3,1566.2,0.8101]
[1744395735171,14.04583,1566.3,1566.1,0.15991321]
[1744395735887,6.38488,1566.2,1566.1,0.15991321]
[1744395736102,14.0457,1566.3,1566.1,0.15991321]
[1744395736773,7.661,1566.3,1566.1,6.54513321]
[1744395736976,7.661,1566.3,1566.1,0.15991321]
[1744395737174,6.38488,1566.2,1566.1,0.15991321]
[1744395737378,14.04562,1566.3,1566.1,0.15991321]
[1744395737548,7.661,1566.3,1566.1,0.15991321]
[1744395737754,7.661,1566.3,1566.1,7.19969853]
[1744395737982,12.7675,1566.5,1566.1,7.19954853]
[1744395738297,6.38425,1566.4,1566.1,7.19954853]
[1744395738453,6.38425,1566.4,1566.1,7.19965853]
[1744395738662,6.38425,1566.4,1566.1,0.81445853]
[1744395738983,6.38447,1566.3,1566.1,0.81445853]
[1744395739183,6.38414,1566.4,1566.1,7.19966853]
[1744395739362,6.38459,1566.3,1566.1,0.81445853]
[1744395739567,6.38459,1566.3,1566.1,0.15991321]
[1744395740267,12.76925,1566.3,1566.1,0.15991321]
[1744395740489,6.38459,1566.3,1566.1,0.15991321]
[1744395740803,6.38414,1566.4,1566.1,12.93017321]
[1744395741099,6.38374,1566.5,1566.2,6.38483]
[1744395741388,6.38377,1566.5,1566.3,0.7526]
[1744395741594,7.663,1566.6,1566.3,0.7526]
[1744395741765,6.38421,1566.4,1566.1,7.29770321]
[1744395742157,12.76847,1566.4,1566.1,7.29767321]
[1744395742358,6.38488,1566.2,1566.1,0.15991321]
[1744395742582,12.76929,1566.3,1566.1,0.15991321]
[1744395742777,6.38488,1566.2,1566.1,0.15991321]
[1744395743367,12.76931,1566.3,1566.1,0.15991321]
[1744395743562,6.38371,1566.5,1566.1,0.15991321]
[1744395743563,12.76843,1566.4,1566.1,6.54513321]
[1744395743781,6.3839,1566.5,1566.1,7.83820153]
[1744395743986,6.3834,1566.6,1566.3,6.38447]
[1744395744490,6.3834,1566.6,1566.3,6.38428]
[1744395744889,20.90786925,1566.7,1566.3,12.76863]
[1744395745125,6.38371,1566.5,1566.2,13.52557]
[1744395745401,0.58679585,1566.6,1566.4,6.38398]
[1744395745570,0.58679585,1566.6,1566.3,13.60121]
[1744395745903,6.97015585,1566.6,1566.3,7.21685]
[1744395746267,6.97015585,1566.6,1566.3,7.21683]
[1744395746495,6.38336,1566.6,1566.3,7.21683]
[1744395747195,6.38336,1566.6,1566.3,0.8325]
[1744395747361,6.38375,1566.5,1566.3,0.8325]
[1744395747562,6.38406,1566.4,1566.3,0.8325]
[1744395747855,12.76757,1566.5,1566.3,0.8325]
[1744395748061,6.38374,1566.5,1566.2,6.38481]
[1744395748298,6.38337,1566.6,1566.2,6.38475]
[1744395748501,6.38337,1566.6,1566.3,12.7687]
[1744395748808,6.38337,1566.6,1566.3,6.38435]
[1744395749033,6.38376,1566.5,1566.2,6.3848]
[1744395749218,6.38376,1566.5,1566.2,7.76102432]
[1744395749728,6.38341,1566.6,1566.3,6.38445]
[1744395749939,6.3822,1566.9,1566.1,6.54502321]
[1744395750233,6.38153,1567.1,1566.8,6.38231]
[1744395750431,7.664,1567.3,1567.0,0.8041]
[1744395750592,49.776,1567.5,1567.1,6.38121]
[1744395750929,49.776,1567.5,1567.3,6.38016]
[1744395751319,49.776,1567.5,1567.2,6.38073]
[1744395751632,49.776,1567.5,1567.3,6.38038]
[1744395751795,5.52670617,1567.7,1567.2,6.38072]
[1744395751995,5.52670617,1567.7,1567.6,6.37917]
[1744395752994,5.52670617,1567.7,1567.6,7.14397]
[1744395754402,5.52670617,1567.7,1567.6,0.7648]
[1744395755830,6.37796,1567.9,1567.6,7.14397]
[1744395755989,6.37796,1567.9,1567.6,7.14381]
[1744395756186,6.37853,1567.8,1567.6,0.7648]
[1744395756432,6.37796,1567.9,1567.6,0.7648]
[1744395756590,6.37796,1567.9,1567.6,7.14384]
[1744395756795,6.37837,1567.8,1567.6,0.7648]
[1744395757091,12.75627,1567.9,1567.6,0.7648]
[1744395757294,63.80793,1568.2,1567.9,6.37787]
[1744395757490,57.431,1568.2,1567.9,12.75567]
[1744395757691,14.0356,1568.5,1568.0,0.8254]
[1744395757934,7.66,1568.5,1568.2,6.37653]
[1744395758118,14.03552,1568.5,1568.2,12.7531]
[1744395758301,7.66,1568.5,1568.2,1.27531]
[1744395758507,7.66,1568.5,1568.1,6.37695]
[1744395758508,14.03558,1568.5,1568.1,6.37695]
[1744395758701,14.03558,1568.5,1568.2,6.37671]
[1744395758913,14.03558,1568.5,1568.1,6.37695]
[1744395758914,20.41142,1568.5,1568.1,12.75395]
[1744395759126,6.37596,1568.4,1568.1,6.37695]
[1744395759399,14.03559,1568.5,1568.1,6.37695]
[1744395759594,7.66,1568.5,1568.3,6.37599]
[1744395760098,21.30550768,1568.8,1568.2,7.014385]
[1744395760303,6.3758,1568.5,1568.2,7.014275]
[1744395760612,6.37507,1568.7,1568.3,7.20277]
[1744395760815,6.37537,1568.6,1568.3,7.9868165]
[1744395761536,6.3753,1568.6,1568.3,7.9868065]
[1744395761755,6.37475,1568.7,1568.3,1.6105465]
[1744395761922,11.93117768,1568.8,1568.6,6.37511]
[1744395762102,4.27117768,1568.8,1568.7,0.7756]
[1744395762539,0.04424125,1568.8,1568.7,0.7756]
[1744395762897,6.41853125,1568.8,1568.7,0.7756]
[1744395763333,6.3749,1568.7,1568.5,0.7782]
[1744395763518,6.3749,1568.7,1568.5,1.493604]
[1744395763715,6.41860125,1568.8,1568.5,7.869054]
[1744395763955,6.37473,1568.7,1568.5,1.493604]
[1744395764338,6.41860125,1568.8,1568.5,7.869114]
[1744395764518,6.41860125,1568.8,1568.5,7.868964]
[1744395764707,6.41860125,1568.8,1568.6,0.7868964]
[1744395764908,6.37483,1568.7,1568.5,0.7782]
[1744395765321,12.74971,1568.7,1568.5,0.7782]
[1744395766255,6.37483,1568.7,1568.5,0.7782]
[1744395766460,12.74973,1568.7,1568.5,0.7782]
[1744395767025,0.6,1568.6,1568.5,0.7782]
[1744395767224,0.6,1568.6,1568.3,6.37618]
[1744395767225,6.37552,1568.5,1568.3,0.7934]
[1744395767522,13.35046,1568.6,1568.3,1.510406]
[1744395767746,0.6,1568.6,1568.4,6.37591]
[1744395768090,0.6,1568.6,1568.5,6.37551]
[1744395768648,0.6,1568.6,1568.5,7.19441]
[1744395769050,7.64624125,1568.8,1568.6,6.37507]
[1744395769248,0.04424125,1568.8,1568.6,7.73201]
[1744395769583,6.37398,1568.9,1568.6,7.73201]
[1744395769749,6.37432,1568.8,1568.6,1.35694]
[1744395770078,6.37391,1568.9,1568.6,1.35694]
[1744395770276,6.37311,1569.1,1568.6,1.35694]
[1744395770482,6.37445,1568.8,1568.6,1.35694]
[1744395771081,6.37483,1568.7,1568.5,0.8189]
[1744395772881,6.37445,1568.8,1568.5,7.19431]
[1744395773087,12.74908,1568.8,1568.5,7.19428]
[1744395773261,6.37445,1568.8,1568.5,13.56966]
[1744395773462,6.37445,1568.8,1568.5,13.56967]
[1744395773660,6.3739,1568.9,1568.5,8.551247]
[1744395773861,6.37431,1568.8,1568.5,8.551357]
[1744395774065,12.7488,1568.8,1568.5,8.551357]
[1744395774494,6.37511,1568.6,1568.5,0.8189]
[1744395775190,6.37511,1568.6,1568.3,14.232526]
[1744395775395,12.74976,1568.7,1568.4,6.37584]
[1744395775596,12.74976,1568.7,1568.3,7.856316]
[1744395775597,7.16691,1568.8,1568.3,1.480106]
[1744395775799,12.75222,1568.4,1568.1,7.19642]
[1744395775981,6.37592,1568.4,1568.1,15.691237]
[1744395776191,6.37592,1568.4,1568.1,15.691217]
[1744395776368,6.37592,1568.4,1568.1,2.937187]
[1744395776693,7.6,1568.4,1567.7,7.14332]
[1744395776891,6.97672,1568.3,1568.0,6.37734]
[1744395777099,0.6,1568.3,1568.1,7.14173]
[1744395777798,6.97638,1568.3,1568.1,0.7647]
[1744395777997,6.37687,1568.2,1567.9,7.14253]
[1744395778203,6.37726,1568.1,1567.9,0.7647]
[1744395778497,6.97652,1568.3,1568.0,6.37744]
[1744395778708,6.97651,1568.3,1568.0,6.37742]
[1744395778899,20.35213,1568.4,1568.1,6.37694]
[1744395779068,6.37638,1568.3,1568.0,6.37735]
[1744395779263,6.37638,1568.3,1568.0,7.091555]
[1744395780199,6.37601,1568.4,1568.1,6.37699]
[1744395780417,0.8169,1568.5,1567.9,0.7647]
[1744395780621,6.37692,1568.2,1567.9,7.14264]
[1744395780820,6.37592,1568.4,1567.6,2.179963]
[1744395780994,6.3777,1568.0,1567.7,6.37865]
[1744395781535,6.37723,1568.1,1567.7,6.37865]
[1744395781536,6.37723,1568.1,1567.7,12.75726]
[1744395781727,7.6,1568.2,1567.8,6.3783]
[1744395781914,0.6,1568.0,1567.8,6.37833]
[1744395782109,0.6,1568.0,1567.8,6.37823]
[1744395782315,0.6,1568.0,1567.8,7.016053]
[1744395782519,0.6,1568.0,1567.8,7.016133]
[1744395782714,0.6,1568.0,1567.8,13.394383]
[1744395782931,0.6,1568.0,1567.9,7.18845]
[1744395783135,6.37612,1568.4,1568.0,6.37724]
[1744395783333,12.75222,1568.4,1568.1,6.37702]
[1744395783643,6.36372732,1568.4,1568.1,12.75403]
[1744395783942,7.601,1568.5,1568.4,6.37592]
[1744395784139,64.44688,1568.8,1568.0,1.483974]
[1744395784345,6.37651,1568.3,1568.0,7.14263]
[1744395784645,6.37651,1568.3,1568.0,0.7652]
[1744395784828,6.37769,1568.0,1567.8,1.435223]
[1744395785553,6.37693,1568.2,1567.9,6.37783]
[1744395785714,6.37689,1568.2,1567.9,7.1591353]
[1744395785914,21.13272,1568.3,1567.9,7.1591353]
[1744395786119,21.13276,1568.3,1568.0,6.37743]
[1744395786634,7.601,1568.3,1568.1,6.37711]
[1744395786838,7.15281,1568.5,1568.2,6.37662]
[1744395787028,20.35157,1568.6,1568.3,6.37601]
[1744395787347,6.37559,1568.5,1568.2,14.110503]
[1744395787554,13.9762,1568.6,1568.3,6.3762]
[1744395787846,13.9762,1568.6,1568.3,6.37633]
[1744395788046,7.601,1568.6,1568.1,7.19481]
[1744395788232,6.37607,1568.4,1568.1,8.552114]
[1744395788411,6.37482,1568.7,1568.2,0.06375971]
[1744395788613,6.37482,1568.7,1568.1,7.04348724]
[1744395788614,56.0854,1568.8,1568.5,0.8004]
[1744395788917,62.46006,1568.8,1568.5,0.8004]
[1744395789118,62.45985,1568.8,1568.5,7.17569]
[1744395789419,6.37471,1568.7,1568.5,0.8004]
[1744395789624,56.0854,1568.8,1568.5,7.893481]
[1744395789920,7.601,1568.9,1568.6,12.75001]
[1744395790128,6.37356,1569.0,1568.6,12.75001]
[1744395790129,6.37356,1569.0,1568.6,6.37475]
[1744395790338,12.7472,1569.0,1568.7,6.37466]
[1744395790526,12.74726,1569.0,1568.7,6.37466]
[1744395790721,6.3739,1568.9,1568.6,6.37475]
[1744395790918,6.37356,1569.0,1568.6,13.5390171]
[1744395790919,12.74741,1569.0,1568.6,13.5390171]
[1744395791159,6.37403,1568.9,1568.6,7.1640271]
[1744395791569,6.37433,1568.8,1568.6,0.7892771]
[1744395791863,12.74888,1568.8,1568.5,7.17581]
[1744395792058,6.37433,1568.8,1568.5,7.17581]
[1744395792236,12.74899,1568.8,1568.5,0.8004]
[1744395792436,0.7611,1569.1,1568.5,0.8004]
[1744395792437,12.74816,1568.9,1568.6,6.37506]
[1744395792861,6.374,1568.9,1568.6,6.3751]
[1744395793157,6.37355,1569.0,1568.7,6.37458]
[1744395793458,6.37355,1569.0,1568.6,14.105038]
[1744395793658,12.74722,1569.0,1568.6,14.105038]
[1744395793957,8.2491,1569.1,1568.7,6.37469]
[1744395794186,7.488,1569.1,1568.8,6.37422]
[1744395794460,6.37361,1569.0,1568.8,0.637422]
[1744395795036,12.74724,1569.0,1568.8,0.637422]
[1744395795245,13.86113,1569.1,1568.7,6.37457]
[1744395795477,13.86133,1569.1,1568.7,6.37448]
[1744395795634,6.3737,1569.0,1568.7,12.74907]
[1744395795967,12.74578,1569.2,1568.9,6.37376]
[1744395796177,12.74578,1569.2,1568.8,7.2067]
[1744395796178,6.3731,1569.1,1568.8,7.2067]
[1744395796340,12.74491,1569.3,1568.9,6.37386]
[1744395796540,12.74491,1569.3,1569.0,6.37347]
[1744395796861,12.74491,1569.3,1569.0,12.74694]
[1744395796862,6.37237,1569.3,1569.0,12.74694]
[1744395797171,13.90996,1569.4,1568.9,0.06372519]
[1744395797332,20.28202,1569.4,1569.1,6.37292]
[1744395797539,20.28202,1569.4,1569.0,12.74682]
[1744395797742,20.28202,1569.4,1569.0,14.021502]
[1744395797937,6.37244,1569.3,1569.0,14.021392]
[1744395798137,0.05,1569.4,1569.2,0.754]
[1744395798342,0.05,1569.4,1569.3,6.37226]
[1744395798545,0.05,1569.4,1569.3,6.43597503]
[1744395798781,0.05,1569.4,1569.3,7.7284915]
[1744395800579,0.05,1569.4,1569.3,1.3562315]
[1744395800781,6.42197,1569.4,1569.2,0.754]
[1744395800963,6.37331,1569.1,1568.7,7.14472]
[1744395801281,0.789,1569.3,1568.7,0.7701]
[1744395801282,7.16131,1569.3,1568.7,0.7701]
[1744395801484,6.3739,1568.9,1568.7,0.7701]
[1744395801691,6.3736,1569.0,1568.7,1.484609]
[1744395801893,12.74737,1569.0,1568.7,1.484609]
[1744395802093,6.3736,1569.0,1568.7,1.484609]
[1744395802384,6.37321,1569.1,1568.7,6.37431]
[1744395802590,12.74648,1569.1,1568.7,12.74888]
[1744395802779,12.74648,1569.1,1568.7,6.37431]
[1744395802964,6.37359,1569.0,1568.6,6.375]
[1744395803167,6.37359,1569.0,1568.7,6.37459]
[1744395803361,0.7825,1568.9,1568.6,6.37502]
[1744395803567,7.15656,1568.9,1568.5,7.13893]
[1744395803873,6.37497,1568.7,1568.5,0.7636]
[1744395804077,6.3754,1568.6,1568.2,6.37664]
[1744395804295,12.75089,1568.6,1568.2,7.094314]
[1744395804588,6.37557,1568.5,1568.2,7.094314]
[1744395804747,12.75133,1568.5,1568.2,0.717704]
[1744395804952,12.75133,1568.5,1568.1,0.8004]
[1744395804953,6.37593,1568.4,1568.1,0.8004]
[1744395805190,6.37592,1568.4,1567.8,6.37827]
[1744395805351,6.37696,1568.2,1567.8,6.37818]
[1744395805551,6.37728,1568.1,1567.7,13.55782]
[1744395805756,6.37769,1568.0,1567.5,7.15139]
[1744395805951,6.37769,1568.0,1567.3,19.34992061]
[1744395805952,6.37854,1567.8,1567.4,6.37985]
[1744395806216,6.37854,1567.8,1567.4,12.75968]
[1744395806350,6.37892,1567.7,1567.3,19.01655061]
[1744395807994,6.37892,1567.7,1566.9,11.01494628]
[1744395807995,0.7554,1567.4,1566.9,0.8034]
[1744395808161,7.486,1567.6,1567.4,6.37983]
[1744395808363,7.486,1567.6,1567.1,6.38113]
[1744395808587,7.486,1567.6,1567.2,6.38074]
[1744395808790,7.486,1567.6,1567.4,6.37975]
[1744395808975,7.486,1567.6,1567.4,6.37972]
[1744395809153,7.486,1567.6,1567.4,12.75955]
[1744395809354,7.486,1567.6,1567.4,14.035505]
[1744395809589,7.486,1567.6,1567.4,7.655675]
[1744395809997,7.486,1567.6,1567.4,14.035515]
[1744395810288,6.37775,1568.0,1567.6,6.37889]
[1744395810489,0.7818,1568.1,1567.5,0.8245]
[1744395810490,7.15894,1568.1,1567.5,0.8245]
[1744395810650,7.488,1568.2,1567.8,6.37836]
[1744395810860,7.488,1568.2,1567.8,7.016146]
[1744395811055,7.488,1568.2,1567.9,6.37782]
[1744395811379,18.09168643,1568.2,1567.9,6.37782]
[1744395811553,18.09168643,1568.2,1567.8,7.016046]
[1744395811554,11.71493643,1568.2,1568.0,6.37754]
[1744395811754,4.22693643,1568.2,1568.0,6.37754]
[1744395811954,10.60370643,1568.2,1567.8,13.394406]
[1744395812165,4.22693643,1568.2,1567.9,6.37794]
[1744395812377,4.22693643,1568.2,1568.0,6.37754]
[1744395813397,4.22693643,1568.2,1567.9,12.75575]
[1744395813561,4.22693643,1568.2,1568.0,6.37731]
[1744395813764,4.22693643,1568.2,1568.1,6.44090823]
[1744395813982,7.14868,1568.5,1568.1,6.37714]
[1744395814191,7.14868,1568.5,1568.0,7.812991]
[1744395814376,6.37605,1568.4,1568.0,7.17526]
[1744395814582,0.6,1568.4,1568.1,6.37678]
[1744395814781,0.6,1568.4,1568.2,6.37665]
[1744395815295,0.6,1568.4,1568.2,6.3767]
[1744395815497,0.6,1568.4,1568.1,6.37708]
[1744395815695,0.6,1568.4,1568.2,6.37646]
[1744395815900,0.6,1568.4,1568.3,6.37633]
[1744395816400,57.2,1568.6,1568.2,7.14396]
[1744395816896,63.57513,1568.6,1568.1,6.37699]
[1744395817061,69.95039,1568.6,1568.1,6.37698]
[1744395817259,63.57519,1568.6,1568.2,6.37667]
[1744395817506,57.2,1568.6,1568.3,6.37618]
[1744395817800,8.2845,1568.9,1568.6,6.37494]
[1744395818097,8.2845,1568.9,1568.3,6.37633]
[1744395818098,14.65854,1568.9,1568.5,6.37546]
[1744395818463,21.0326,1568.9,1568.5,6.37546]
[1744395818661,6.37442,1568.8,1568.4,6.37582]
[1744395818992,8.2845,1568.9,1568.6,6.37499]
[1744395819157,14.65855,1568.9,1568.5,6.37535]
[1744395819595,0.6,1568.8,1568.5,6.37535]
[1744395819906,4.22693643,1569.2,1569.0,6.37315]
[1744395820102,4.22693643,1569.2,1569.1,6.37308]
[1744395820596,0.05,1569.4,1569.2,6.37246]
[1744395821206,0.05,1569.4,1569.2,6.37238]
[1744395821413,0.05,1569.4,1569.3,6.37226]
[1744395821613,0.05,1569.4,1569.0,0.637315]
[1744395821810,6.37255,1569.3,1568.9,13.54076]
[1744395822306,6.42192,1569.4,1569.0,6.37322]
[1744395822665,0.05,1569.4,1569.1,0.06372545]
[1744395822906,0.05,1569.4,1569.1,12.74583]
[1744395823204,0.05,1569.4,1569.1,6.37308]
[1744395823367,0.05,1569.4,1569.1,12.74616]
[1744395823567,0.05,1569.4,1569.1,14.020776]
[1744395823802,0.05,1569.4,1569.2,6.37266]
[1744395824015,0.05,1569.4,1569.2,6.37248]
[1744395824227,0.05,1569.4,1569.1,6.37302]
[1744395824434,6.4219,1569.4,1569.1,6.37302]
[1744395824600,0.05,1569.4,1569.1,6.37295]
[1744395824801,6.422,1569.4,1569.1,6.37295]
[1744395825129,0.05,1569.4,1569.1,12.74584]
[1744395825446,6.42186,1569.4,1569.1,7.647474]
[1744395826529,12.79391,1569.4,1569.0,6.37335]
[1744395826737,6.42186,1569.4,1569.1,6.373]
[1744395827946,12.79406,1569.4,1569.0,6.37333]
[1744395828230,6.42186,1569.4,1569.0,12.74666]
[1744395828435,12.79399,1569.4,1569.0,6.37333]
[1744395828598,0.05,1569.4,1569.1,6.37295]
[1744395828795,0.05,1569.4,1569.1,12.74587]
[1744395829230,0.05,1569.4,1569.1,6.37292]
[1744395829439,6.4219,1569.4,1569.1,6.37292]
[1744395829651,0.7938,1569.3,1568.9,6.37377]
[1744395829943,12.74593,1569.2,1568.8,6.37415]
[1744395830235,12.74593,1569.2,1568.8,12.74832]
[1744395830601,1.3938,1569.3,1569.0,6.3732]
[1744395830798,1.3938,1569.3,1568.8,6.37429]
[1744395830799,0.6,1569.3,1569.1,6.37269]
[1744395831035,0.6,1569.3,1569.2,6.37267]
[1744395831522,0.05,1569.4,1569.3,6.37226]
[1744395832142,0.05,1569.4,1569.2,6.37253]
[1744395834356,6.42192,1569.4,1569.1,1.404069]
[1744395834524,6.42192,1569.4,1569.1,0.637269]
[1744395834725,0.6,1569.3,1569.1,0.637269]
[1744395834953,6.97227,1569.3,1569.0,6.37333]
[1744395835159,6.97227,1569.3,1569.0,12.74669]
[1744395835478,0.6,1569.3,1569.1,6.37294]
[1744395835662,0.6,1569.3,1569.1,6.37293]
[1744395836151,0.6,1569.3,1569.0,12.74686]
[1744395836319,0.05,1569.4,1569.2,12.59208785]
[1744395836516,6.37049,1569.8,1569.4,6.37173]
[1744395836768,13.54583,1569.8,1569.5,6.37144]
[1744395837064,7.1754,1569.8,1569.5,6.37144]
[1744395837259,6.37069,1569.7,1569.4,6.37175]
[1744395837564,7.1754,1569.8,1569.5,6.37134]
[1744395837867,6.37075,1569.7,1569.2,0.8054]
[1744395838023,0.805,1569.8,1569.2,7.17802]
[1744395838225,7.17524,1569.8,1569.4,6.3718]
[1744395838448,6.37078,1569.7,1569.4,6.3718]
[1744395838649,7.17524,1569.8,1569.4,14.017928]
[1744395839266,0.805,1569.8,1569.5,6.37125]
[1744395839471,20.26716,1570.0,1569.6,6.37091]
[1744395839669,13.89743,1570.0,1569.6,6.37104]
[1744395839855,13.89743,1570.0,1569.7,6.37061]
[1744395840051,20.26709,1570.0,1569.6,12.74208]
[1744395840260,13.89743,1570.0,1569.6,7.728048]
[1744395840489,7.528,1570.0,1569.7,6.37052]
[1744395840765,7.528,1570.0,1569.9,6.36983]
[1744395840931,10.59515643,1570.3,1569.9,6.36983]
[1744395840932,21.07982,1570.3,1569.9,6.36983]
[1744395841127,6.36866,1570.2,1569.8,6.37013]
[1744395841331,6.36914,1570.1,1569.8,6.37013]
[1744395841769,8.3432,1570.3,1569.8,6.36998]
[1744395841972,6.36893,1570.2,1569.8,6.36998]
[1744395842273,12.73794,1570.2,1569.8,6.36998]
[1744395842428,6.36919,1570.1,1569.8,6.37018]
[1744395842628,12.7384,1570.1,1569.7,6.37057]
[1744395842830,6.36919,1570.1,1569.7,12.74108]
[1744395843069,6.36873,1570.2,1569.8,6.37023]
[1744395843467,6.41782,1570.4,1569.9,0.7861]
[1744395843655,6.41782,1570.4,1570.0,6.36921]
[1744395843979,0.05,1570.4,1570.2,6.36848]
[1744395844134,0.05,1570.4,1570.3,6.3682]
[1744395844337,0.05,1570.4,1570.3,1.352271]
[1744395844540,0.05,1570.4,1570.3,6.3682]
[1744395844876,0.05,1570.4,1570.1,7.13731]
[1744395845069,0.05,1570.4,1570.1,0.7684]
[1744395845232,0.7622,1570.3,1570.0,6.36933]
[1744395845430,0.7622,1570.3,1570.1,6.36878]
[1744395846664,0.7622,1570.3,1570.0,7.381583]
[1744395846870,13.49893,1570.3,1569.9,7.12319]
[1744395847077,13.49893,1570.3,1570.0,6.36929]
[1744395847078,0.7622,1570.3,1570.0,6.36929]
[1744395847254,0.7622,1570.3,1570.1,6.3689]
[1744395847586,6.36904,1570.1,1569.8,6.36993]
[1744395847743,12.73828,1570.1,1569.7,8.5339508]
[1744395847943,6.36907,1570.1,1569.7,14.9044808]
[1744395848369,12.73835,1570.1,1569.7,7.7803308]
[1744395848678,12.73823,1570.1,1569.8,6.37012]
[1744395848979,6.36947,1570.0,1569.7,7.7803308]
[1744395849180,6.36907,1570.1,1569.7,7.7803308]
[1744395849353,6.36861,1570.2,1569.7,1.4098208]
[1744395849556,6.37035,1569.8,1569.5,6.37143]
[1744395849890,6.36995,1569.9,1569.5,12.74267]
[1744395850189,12.74015,1569.9,1569.5,12.74267]
[1744395850512,0.8271,1570.3,1570.1,6.36897]
[1744395850786,0.8271,1570.3,1570.0,6.36923]
[1744395850787,7.19532,1570.3,1570.0,6.36923]
[1744395851080,0.8271,1570.3,1570.0,12.73854]
[1744395851290,0.8271,1570.3,1570.1,6.36883]
[1744395851587,7.19538,1570.3,1570.0,6.3693]
[1744395851766,0.8271,1570.3,1570.0,6.43298761]
[1744395851969,0.05,1570.4,1570.3,6.3682]
[1744395852173,0.05,1570.4,1570.2,6.36845]
[1744395852669,0.05,1570.4,1570.2,12.73694]
[1744395853186,0.05,1570.4,1570.3,6.3682]
[1744395853743,0.05,1570.4,1570.2,6.36845]
[1744395853977,0.05,1570.4,1570.3,6.3682]
[1744395854904,0.05,1570.4,1570.2,7.005435]
[1744395855063,0.05,1570.4,1570.3,6.3682]
[1744395855796,0.05,1570.4,1570.2,7.005435]
[1744395856093,0.05,1570.4,1570.3,6.3682]
[1744395856464,0.05,1570.4,1570.2,7.005305]
[1744395856864,0.05,1570.4,1570.3,7.13240965]
[1744395857192,0.05,1570.4,1570.3,7.0687305]
[1744395858190,0.05,1570.4,1570.3,7.8474305]
[1744395859200,0.05,1570.4,1570.3,8.3974305]
[1744395859522,0.05,1570.4,1570.3,13.25347738]
[1744395860086,0.05,1570.4,1570.0,0.72059876]
[1744395860301,0.05,1570.4,1570.2,6.36856]
[1744395860475,0.05,1570.4,1570.2,6.3685]
[1744395860676,0.05,1570.4,1570.2,6.36857]
[1744395862689,7.16499,1570.3,1570.0,6.3694]
[1744395862891,6.36865,1570.2,1569.9,12.73943]
[1744395863124,6.36865,1570.2,1569.9,7.453253]
[1744395863726,0.7966,1570.3,1570.1,6.369]
[1744395864212,7.16482,1570.3,1570.0,12.73854]
[1744395865575,0.05,1570.4,1569.9,8.440243]
[1744395865690,0.05,1570.4,1570.2,6.36845]
[1744395866027,0.05,1570.4,1570.2,7.005295]
[1744395866387,0.05,1570.4,1570.3,6.3682]
[1744395866592,0.05,1570.4,1570.3,6.43187328]
[1744395866788,0.05,1570.4,1570.3,6.3682]
[1744395868298,0.05,1570.4,1570.3,6.43187289]
[1744395868511,0.05,1570.4,1570.3,8.97480137]
[1744395868993,0.05,1570.4,1570.3,8.91112848]
[1744395870130,0.05,1570.4,1570.3,9.46112848]
[1744395870792,0.05,1570.4,1570.3,8.91112848]
[1744395871293,0.05,1570.4,1570.3,6.3682]
[1744395872195,0.05,1570.4,1570.3,6.43187298]
[1744395872492,0.05,1570.4,1570.3,6.3682]